Workbook

Sheet Общий
A2: дата | B2: кол-во | C2: бай-ины | D2: призы | E2: профит | F2: динамика
A3: 2016-01-13 | B3: 1 | C3: 77 | D3: 0 | E3: =E3 -> 0 | F3: 0
A4: 2016-01-15 | B4: 5 | C4: =210+110+126+93+303 -> 842 | D4: 5840.1 | E4: =D4-C4 -> 4998.1 | F4: =F3+E4 -> 4998.1 | I4: =SUM(E5:E6,E8,E11,E12) -> -2830 | J4: ="-" -> - | L4: =I4+I5 -> 6520.1
A5: 2016-01-17 | B5: 3 | C5: =2750+550+660 -> 3960 | D5: 2050 | E5: =D5-C5 -> -1910 | F5: =F4+E5 -> 3088.1 | I5: =SUM(E4,E7,E9,E10,E13,E14) -> 9350.1 | J5: ="+" -> +
A6: 2016-01-18 | B6: 5 | C6: =21+22+62+102+220 -> 427 | D6: 60 | E6: -367 | F6: =F5+E6 -> 2721.1
A7: 2016-01-19 | B7: 13 | C7: =49+63+31+17+31+51+110+62+77+31+31+61 -> 614 | D7: =178+279+1331 -> 1788 | E7: 1174 | F7: 3895.1
A8: 2016-01-20 | B8: 18 | C8: =110+210+62+126+93+63+31+17+31+110+21+62+77+164+51+61+31+164 -> 1484 | D8: =234+171+240+355 -> 1000 | E8: -484 | F8: 3411.1
A9: 2016-01-21 | B9: 2 | C9: =330+210 -> 540 | D9: =990 -> 990 | E9: 450 | F9: 3861.1
A10: 2016-01-22 | B10: 8 | C10: =63+31+17+51+31+42+77+31 -> 343 | D10: =142+50+873+355 -> 1420 | E10: 1077 | F10: 4938.1
A11: 2016-01-23 | B11: 1 | C11: 4 | D11: 0 | E11: -4 | F11: 4934.1
A12: 2016-01-28 | B12: 8 | C12: =62+51+22+82+62+110+22+31 -> 442 | D12: 377 | E12: -65 | F12: 4869.1
A13: 2016-01-29 | B13: 29 | C13: =155+110+26+21+22+62+62+22+110+21+77+17+110+126+63+82+22+37+20+164+51+93+17+21+31+81+102+77+164 -> 1966 | D13: =370+270+720+1004+63+290+43+132+40+330 -> 3262 | E13: 1296 | F13: 6165.1
A14: 2016-01-30 | B14: 36 | C14: =210+510+55+82+110+165+62+63+330+330+42+21+17+110+330+410+210+71+93+330+21+17+41+51+62+77+330+22+164+93+51+62+15+41 -> 4598 | D14: =80+136+288+238+43+170+498+3500 -> 4953 | E14: 355 | F14: 6520.1
B15: 1 | C15: 500 | D15: 1000 | E15: 500 | F15: 7020.1
E16: 0
E17: 0
E18: 0
E19: 0
E20: 0
E21: 0
E22: 0
E23: 0
E24: 0
E25: 0
E26: 0
E27: 0
E28: 0
E29: 0
E30: 0
E31: 0
E32: 0
E33: 0
E34: 0
E35: 0
E36: 0
E37: 0
E38: 0
E39: 0
E40: 0
E41: 0
E42: 0
E43: 0
E44: 0
E45: 0
E46: 0
E47: 0
E48: 0
E49: 0
E50: 0
E51: 0
E52: 0
E53: 0
E54: 0
E55: 0
E56: 0
E57: 0
E58: 0
E59: 0
E60: 0
E61: 0
E62: 0
E63: 0
E64: 0
E65: 0
E66: 0
E67: 0
E68: 0
E69: =D69-C69 -> 0
E70: 0
E71: 0
E72: 0
E73: 0
E74: 0
E75: 0
E76: 0
E77: 0
E78: 0
E79: 0
E80: 0
E81: 0
E82: 0
E83: 0
E84: 0
E85: 0
E86: 0
E87: 0
E88: 0
E89: 0

Sheet по турнирам
A2: дата | B2: номер турнира | C2: бай-ины | D2: призы | E2: профит | F2: динамика
E3: 0
A4: 04.08.17 | B4: 90 | D4: -450 | E4: =D4-C4 -> -450 | F4: =F3+E4 -> -450
A5: 05.08.17 | B5: 217 | D5: 11 | E5: 11 | F5: =F4+E5 -> -439
A6: 08.08.17 | B6: 487 | D6: 817 | E6: 817 | F6: 378
A7: 09.08.17 | B7: 914 | D7: 4591 | E7: 4591 | F7: 4969
E8: 0 | F8: 4969
E9: 0 | F9: 4969
E10: 0 | F10: 4969
E11: 0
E12: 0
E13: 0
E14: 0
E15: 0
E16: 0
E17: 0
E18: 0
E19: 0

Sheet Лист3
